fUST/lending_fUST_20250827
["ID","MTS","AMOUNT","RATE_DAILY","PERIOD"]
[381523912,1756247592430,-122.98729776,0.000253,2]
[381523918,1756247625269,2612.78983506,0.000199,2]
[381523919,1756247625551,2612.78983485,0.00021627,2]
[381523920,1756247625594,2612.78983485,0.00023353,2]
[381523921,1756247625634,2161.64049524,0.0002508,2]
[381523922,1756247625662,451.14933961,0.0002508,2]
[381523923,1756247804814,2358.47827101,0.000199,2]
[381523924,1756247804903,2358.47827077,0.00021627,2]
[381523925,1756247804990,2358.47827077,0.00023353,2]
[381523926,1756247805098,2358.47827077,0.0002508,2]
[381523927,1756247805410,-191.65478537,0.00026648,2]
[381523929,1756247933128,-225.71780587,0.0002632,2]
[381523930,1756247937124,-269.0988277,0.0002632,2]
[381523931,1756247941067,-165.86420085,0.0002632,2]
[381523932,1756247942751,-215.39313076,0.0002632,2]
[381523933,1756247944291,-216.15220916,0.0002632,2]
[381523934,1756247948827,-199.0,0.0002632,2]
[381523935,1756247950600,-468.37474262,0.0002632,2]
[381523936,1756247952282,-190.92246214,0.0002632,2]
[381523937,1756247954695,-192.0,0.0002632,2]
[381523938,1756247957707,-180.135331,0.0002621,2]
[381523939,1756247957731,-224.50653418,0.0002632,2]
[381523940,1756247959689,-199.0,0.0002632,2]
[381523941,1756247964212,-87.66471982,0.0002632,2]
[381523942,1756247981047,2133.70889413,0.000199,2]
[381523943,1756247981195,2133.70889406,0.00021627,2]
[381523944,1756247981345,2133.70889406,0.00023353,2]
[381523945,1756247981480,2133.70889406,0.0002508,2]
[381523946,1756248012412,364.46079395,0.00025205,30]
[381523947,1756248157111,1892.03809295,0.000199,2]
[381523948,1756248157235,1892.03809288,0.00021627,2]
[381523949,1756248157362,1892.03809288,0.00023353,2]
[381523950,1756248157508,1892.03809288,0.0002508,2]
[381523952,1756248344731,1735.81636256,0.000199,2]
[381523953,1756248344863,1735.81636251,0.00021627,2]
[381523954,1756248345001,1735.81636251,0.00023353,2]
[381523955,1756248345117,1735.81636251,0.0002508,2]
[381523956,1756248392169,-250.0,0.00026426,2]
[381523957,1756248392190,-169.1776053,0.00026706,2]
[381523958,1756248392212,-173.775935,0.00026806,6]
[381523959,1756248392239,-1735.81636251,0.00026806,6]
[381523960,1756248392259,-166.0,0.00027,7]
[381523961,1756248392281,-1410.30795059,0.00027513,2]
[381523962,1756248392302,-440.11858205,0.00027589,2]
[381523963,1756248426291,-300.0,0.00025778,2]
[381523964,1756248430640,-152.0,0.00025778,2]
[381523965,1756248432082,-140.454352,0.00025778,2]
[381523966,1756248432102,-437.00455024,0.00026044,2]
[381523967,1756248432122,-166.0,0.00027,7]
[381523968,1756248432143,-154.08048,0.0002749,2]
[381523969,1756248432164,-300.0,0.00027589,2]
[381523970,1756248432185,-5575.69243385,0.0002759,2]
[381523971,1756248432205,-646.47458324,0.0002759,2]
[381523972,1756248432225,-800.0,0.00027613,2]
[381523973,1756248432245,-800.0,0.00027614,2]
[381523974,1756248432265,-800.0,0.0002763,2]
[381523975,1756248432287,-4704.8001937,0.00027647,2]
[381523976,1756248432307,-172.98618915,0.00027659,2]
[381523977,1756248442781,-277.17011412,0.00025944,2]
[381523978,1756248444978,-188.0,0.00025944,2]
[381523979,1756248447328,-300.0,0.00025944,2]
[381523980,1756248450161,-150.63401106,0.00025944,2]
[381523981,1756248451130,-328.57868979,0.00027659,2]
[381523982,1756248451160,-3371.52054938,0.00027659,2]
[381523983,1756248519013,1502.12166218,0.000199,2]
[381523984,1756248519130,1502.12166208,0.00021627,2]
[381523985,1756248519245,1502.12166208,0.00023353,2]
[381523986,1756248519364,1502.12166208,0.0002508,2]
[381524055,1756248638472,-374.61339437,0.00026806,6]
[381524056,1756248638654,-1127.50826771,0.00026806,6]
[381524057,1756248638664,-167.0,0.00027,7]
[381524058,1756248638676,-166.55397057,0.00027579,2]
[381524059,1756248638685,-171.9925153,0.00027579,2]
[381524061,1756248641017,-228.33888083,0.00027579,2]
[381524131,1756248643747,-265.21827026,0.00027579,2]
[381524133,1756248643757,-217.58133368,0.00027589,2]
[381524134,1756248643769,-82.41866632,0.00027589,2]
[381524136,1756248643779,-494.50437393,0.0002759,2]
[381524143,1756248646641,-3222.62391531,0.0002759,2]
[381524144,1756248646651,-279.47211015,0.00027668,2]
[381524145,1756248646660,-500.0,0.00027668,2]
[381524146,1756248646670,-500.0,0.00027668,2]
[381524147,1756248646681,-500.0,0.00027668,2]
[381524148,1756248646691,-500.0,0.00027668,2]
[381524149,1756248646700,-500.0,0.00027668,2]
[381524150,1756248646709,-500.0,0.00027668,2]
[381524151,1756248646718,-500.0,0.00027668,2]
[381524152,1756248646727,-500.0,0.00027668,2]
[381524153,1756248646737,-500.0,0.00027668,2]
[381524154,1756248646746,-500.0,0.00027668,2]
[381524155,1756248646755,-500.0,0.00027668,2]
[381524156,1756248646764,-500.0,0.00027668,2]
[381524157,1756248646773,-500.0,0.00027668,2]
[381524158,1756248646783,-500.0,0.00027668,2]
[381524159,1756248646792,-614.37825624,0.00027668,2]
[381524160,1756248646801,-614.37825624,0.00027668,2]
[381524161,1756248647025,-614.37825624,0.00027668,2]
[381524162,1756248647034,-614.37825624,0.00027668,2]
[381524163,1756248647043,-614.37825624,0.00027668,2]
[381524164,1756248647053,-614.37825624,0.00027668,2]
[381524165,1756248647062,-614.37825624,0.00027668,2]
[381524166,1756248647071,-614.37825624,0.00027668,2]
[381524167,1756248647081,-614.37825624,0.00027668,2]
[381524168,1756248647091,-614.37825624,0.00027668,2]
[381524169,1756248647100,-614.37825624,0.00027668,2]
[381524170,1756248647110,-731.20321255,0.00027668,2]
[381524171,1756248647119,-731.20321255,0.00027668,2]
[381524172,1756248647128,-731.20321255,0.00027668,2]
[381524173,1756248647138,-731.20321255,0.00027668,2]
[381524174,1756248647148,-17358.04432218,0.00027668,2]
[381524175,1756248647157,-504.65,0.00027669,3]
[381524176,1756248647166,-252.32,0.00027669,3]
[381524177,1756248647175,-757.01,0.00027669,3]
[381524178,1756248647184,-3925.99660845,0.00027669,2]
[381524179,1756248647193,-4501.54236374,0.00027669,2]
[381524180,1756248695230,1325.87913162,0.000199,2]
[381524181,1756248695352,1325.87913147,0.00021627,2]
[381524182,1756248695473,1325.87913147,0.00023353,2]
[381524183,1756248695598,1325.87913147,0.0002508,2]
[381524185,1756248750862,540.069393,0.00013699,2]
[381524186,1756248751076,540.069393,0.00020187,2]
[381524187,1756248762749,1621.62888106,0.000252,2]
[381524188,1756248869327,1205.79545573,0.000199,2]
[381524189,1756248869459,1205.79545553,0.00021627,2]
[381524190,1756248869587,1205.79545553,0.00023353,2]
[381524191,1756248869760,1205.79545553,0.0002508,2]
[381524192,1756248881582,3378.37111894,0.000252,2]
[381524193,1756248922342,-244.39383322,0.00026576,2]
[381524194,1756248926211,-291.71201477,0.00026217,2]
[381524195,1756248928888,-243.17039191,0.00026217,2]
[381524196,1756248932734,-254.70720371,0.00026217,2]
[381524197,1756248935005,-270.16743599,0.00026217,2]
[381524198,1756248936986,-199.0,0.00026217,2]
[381524199,1756248940774,-207.07753786,0.00026217,2]
[381524200,1756248942427,-155.84,0.00026217,2]
[381524201,1756248944034,-168.29647525,0.00026217,2]
[381524202,1756248946192,-280.69894051,0.00026217,2]
[381524203,1756248946215,-13.52334197,0.00026576,2]
[381524204,1756249053721,-460.0,0.00026284,2]
[381524205,1756249056454,-310.90255367,0.00026284,2]
[381524206,1756249057336,1202.92566258,0.000199,2]
[381524207,1756249057454,1202.9256624,0.00021627,2]
[381524208,1756249057583,1202.9256624,0.00023353,2]
[381524209,1756249057716,1202.9256624,0.0002508,2]
[381524210,1756249059601,-168.94994048,0.00026284,2]
[381524211,1756249061679,-300.0,0.00026284,2]
[381524212,1756249063798,-300.0,0.00026284,2]
[381524213,1756249067752,-156.96,0.00026284,2]
[381524214,1756249070074,-297.61056082,0.00026284,2]
[381524215,1756249071641,-211.42943918,0.00026284,2]
[381524216,1756249077660,-161.41485338,0.00026284,2]
[381524217,1756249080653,-304.09188003,0.00026284,2]
[381524218,1756249085438,-172.75147692,0.00026284,2]
[381524219,1756249089851,-152.95697777,0.00026284,2]
[381524220,1756249092742,-488.0659922,0.00026284,2]
[381524221,1756249096686,-338.25078068,0.00026284,2]
[381524222,1756249098934,-200.16605707,0.00026284,2]
[381524223,1756249100632,-248.83504683,0.00026284,2]
[381524224,1756249102955,-152.41272084,0.00026284,2]
[381524225,1756249108110,-167.58387999,0.00026284,2]
[381524226,1756249109848,-269.42852755,0.00026284,2]
[381524227,1756249112905,-414.52315394,0.00026232,2]
[381524228,1756249116926,-237.1030353,0.00026232,2]
[381524229,1756249120223,-262.40773611,0.00026232,2]
[381524230,1756249123171,-4.00656795,0.00026232,2]
[381524231,1756249123192,-151.70607044,0.00026284,2]
[381524232,1756249124960,-301.84333382,0.00026284,2]
[381524233,1756249126587,-242.76137208,0.00026284,2]
[381524234,1756249129448,-183.23645434,0.00026284,2]
[381524235,1756249133736,-233.51894443,0.00026284,2]
[381524236,1756249137869,-184.4719823,0.00026284,2]
[381524237,1756249140229,-288.91349662,0.00026284,2]
[381524238,1756249143506,-168.95,0.00026284,2]
[381524239,1756249145967,-39.68743176,0.00026284,2]
[381524240,1756249145989,-120.31256824,0.00026307,2]
[381524241,1756249149895,-59.82276276,0.00026307,2]
[381524242,1756249204038,-182.41,0.00025205,2]
[381524243,1756249206741,-315.01886859,0.00025205,2]
[381524244,1756249208911,-2.57113141,0.00025205,2]
[381524245,1756249208936,-184.5183104,0.00025205,2]
[381524246,1756249210830,-174.34571015,0.00025205,2]
[381524247,1756249212431,-141.13597945,0.00025205,2]
[381524248,1756249212455,-215.73402055,0.00025205,2]
[381524249,1756249214787,-230.15569764,0.00025205,2]
[381524250,1756249217664,-54.11028181,0.00025205,2]
[381524251,1756249217686,-153.53529273,0.00025205,2]
[381524252,1756249224764,-206.31869726,0.00025205,2]
[381524253,1756249226794,-140.14601001,0.00025205,2]
[381524254,1756249226817,-64.14521671,0.00025205,2]
[381524255,1756249230008,-170.48230734,0.00025205,2]
[381524256,1756249232129,1350.98304643,0.000199,2]
[381524257,1756249232284,1350.98304615,0.00021627,2]
[381524258,1756249232418,1350.98304615,0.00023353,2]
[381524259,1756249232576,1350.98304615,0.0002508,2]
[381524260,1756249238804,-206.4721121,0.00025205,2]
[381524261,1756249242099,-58.90036385,0.00025205,2]
[381524262,1756249242123,-137.33760885,0.00025205,2]
[381524263,1756249245539,-163.70522651,0.00025205,2]
[381524264,1756249247876,-179.53020932,0.00025205,2]
[381524265,1756249249468,-19.42695532,0.00025205,2]
[381524266,1756249249490,-148.27839844,0.00025205,2]
[381524267,1756249253801,-170.91036195,0.00025205,2]
[381524268,1756249256517,-180.81123961,0.00025205,2]
[381524269,1756249256541,-30.1217268,0.00025205,2]
[381524270,1756249258883,-255.16547011,0.00025205,2]
[381524271,1756249262386,-159.90182753,0.00025205,2]
[381524272,1756249264040,-54.81097556,0.00025205,2]
[381524273,1756249264063,-131.22818605,0.00025205,2]
[381524274,1756249266389,-170.02092987,0.00025205,2]
[381524275,1756249270988,-198.75088408,0.00025205,2]
[381524276,1756249271012,-112.82911592,0.00025205,2]
[381524277,1756249273651,-243.562907,0.00025205,2]
[381524279,1756249277060,-143.60797708,0.00025205,2]
[381524280,1756249277084,-149.92119883,0.00025205,2]
[381524281,1756249279478,-213.64709897,0.00025205,2]
[381524282,1756249282517,-13.84564715,0.00025205,2]
[381524283,1756249282540,-182.41,0.00025313,7]
[381524284,1756249284422,935.01436526,0.00025105,2]
[381524285,1756249285436,213.64709897,0.000252,2]
[381524286,1756249411145,1455.29760986,0.000199,2]
[381524287,1756249411296,1455.29760978,0.00021627,2]
[381524288,1756249421692,1455.29760978,0.00023353,2]
[381524289,1756249421824,1455.29760978,0.0002508,2]
[381524290,1756249426696,5000.0,0.000252,2]
[381524291,1756249441581,4681.65788843,0.000252,2]
[381524292,1756249457956,5000.0,0.000252,2]
[381524293,1756249471591,1671.80830948,0.000252,2]
[381524294,1756249473187,5000.0,0.000252,2]
[381524295,1756249488973,5000.0,0.000252,2]
[381524296,1756249505592,5000.0,0.000252,2]
[381524297,1756249521422,5000.0,0.000252,2]
[381524298,1756249562523,-181.02062697,0.00026307,2]
[381524299,1756249564730,-68.30541643,0.00026307,2]
[381524300,1756249594011,165.0,8.7e-07,2]
[381524301,1756249598930,1591.52229305,0.000199,2]
[381524302,1756249599062,1591.52229296,0.00021627,2]
[381524303,1756249599195,1591.52229296,0.00023353,2]
[381524304,1756249599333,1591.52229296,0.0002508,2]
[381524305,1756249610065,5000.0,0.000252,2]
[381524307,1756249626144,5000.0,0.000252,2]
[381524308,1756249627433,-166.10754041,0.00025778,2]
[381524309,1756249629650,-66.29386559,0.00025778,2]
[381524310,1756249629673,-205.24746235,0.00026002,2]
[381524311,1756249633941,363.85923096,0.0002641,2]
[381524312,1756249642145,-237.75922483,0.00026676,2]
[381524313,1756249654192,-150.90174391,0.0002641,2]
[381524314,1756249723894,-153.55238351,0.00026376,2]
[381524315,1756249741252,-152.0,0.00025205,2]
[381524316,1756249743567,-57.89621954,0.00025205,2]
[381524317,1756249743973,-23.70178968,0.00026376,2]
[381524319,1756249774103,600.296204,0.00013699,2]
[381524320,1756249774293,600.296204,0.00020187,2]
[381524321,1756249796864,1496.73868273,0.000199,2]
[381524322,1756249796993,1496.73868266,0.00021627,2]
[381524323,1756249797161,1496.73868266,0.00023353,2]
[381524324,1756249797234,1496.73868266,0.0002508,2]
[381524325,1756249831359,5000.0,0.000252,2]
[381524418,1756249840632,-121.53451088,0.00026268,2]
[381524430,1756249840736,-291.79298301,0.00026268,2]
[381524506,1756249846532,184.84598952,0.000252,2]
[381524507,1756249861861,-353.52410978,0.00026268,2]
[381524508,1756249865421,-300.0,0.00026267,2]
[381524509,1756249865716,-8631.77154587,0.00026268,2]
[381524510,1756249865854,-10000.01,0.00026268,2]
[381524511,1756249866163,-202.18674825,0.00026268,2]
[381524512,1756249869504,-227.17244593,0.00026268,2]
[381524513,1756249872182,-216.36391022,0.00026268,2]
[381524514,1756249875643,-44.33625394,0.00026268,2]
[381524515,1756249875684,-9911.33749212,0.00026268,2]
[381524516,1756249875720,-470.25742958,0.00026284,2]
[381524517,1756249875753,-204.29122672,0.00026384,2]
[381524518,1756249875783,-168.53752178,0.00026476,87]
[381524519,1756249875812,-709.01669264,0.00026476,2]
[381524520,1756249875841,-290.74632319,0.00026576,2]
[381524521,1756249891501,5000.0,0.000252,2]
[381524522,1756249909070,5000.0,0.000252,2]
[381524523,1756249925756,4517.47001006,0.000252,2]
[381524524,1756249944307,-168.96037289,0.00026197,2]
[381524525,1756249946605,-213.34329981,0.00026197,2]
[381524526,1756249954250,-160.11626619,0.00026197,2]
[381524527,1756249960019,-123.58006111,0.00026197,2]
[381524528,1756250002035,1824.69278176,0.000199,2]
[381524529,1756250002147,1824.69278152,0.00021627,2]
[381524530,1756250002259,1824.69278152,0.00023353,2]
[381524531,1756250002386,1824.69278152,0.0002508,2]
[381524532,1756250015093,482.0137565,0.00026293,2]
[381524533,1756250074789,-270.59715655,0.00026332,2]
[381524534,1756250076363,-231.51115385,0.00026332,2]
[381524535,1756250180405,2127.08956322,0.000199,2]
[381524536,1756250180543,2127.08956298,0.00021627,2]
[381524537,1756250180665,2127.08956298,0.00023353,2]
[381524538,1756250180804,2127.08956298,0.0002508,2]
[381524539,1756250358725,2235.2581554,0.000199,2]
[381524540,1756250358936,2235.2581552,0.00021627,2]
[381524541,1756250359050,2235.2581552,0.00023353,2]
[381524542,1756250359185,2235.2581552,0.0002508,2]
[381524544,1756250540778,-170.91036196,0.00026207,2]
[381524545,1756250542927,-7.11400804,0.00026207,2]
[381524546,1756250542950,-152.88599196,0.00026239,2]
[381524547,1756250544178,2201.81538566,0.000199,2]
[381524548,1756250544301,2201.81538562,0.00021627,2]
[381524549,1756250544423,2201.81538562,0.00023353,2]
[381524550,1756250544616,2201.81538562,0.0002508,2]
[381524551,1756250546213,-163.25467556,0.00026239,2]
[381524552,1756250550391,-446.70365809,0.00026239,2]
[381524553,1756250552516,-177.00816859,0.00026239,2]
[381524554,1756250719583,2246.92794375,0.000199,2]
[381524555,1756250719711,2246.92794357,0.00021627,2]
[381524556,1756250719881,2246.92794357,0.00023353,2]
[381524557,1756250720036,2246.92794357,0.0002508,2]
[381524559,1756250799625,10000.0,0.000252,2]
[381524560,1756250821736,3881.0,0.000252,2]
[381524561,1756250825086,-203.63740792,0.00026576,2]
[381524562,1756250825109,-252.0,0.00026619,2]
[381524563,1756250825131,-170.91036196,0.0002667,2]
[381524564,1756250825154,-600.296204,0.00026676,2]
[381524565,1756250825178,-500.0,0.0002677,20]
[381524566,1756250825200,-184.388002,0.00026806,6]
[381524567,1756250825229,-2246.92794357,0.00026806,6]
[381524568,1756250825253,-252.0,0.00026917,7]
[381524569,1756250825276,-251.0,0.00026943,2]
[381524570,1756250825296,-227.66817317,0.0002699,2]
[381524571,1756250825320,-251.0,0.00027092,2]
[381524572,1756250825343,-250.0,0.00027142,2]
[381524573,1756250825371,-250.0,0.00027187,2]
[381524574,1756250825394,-251.0,0.00027194,2]
[381524575,1756250825417,-300.0,0.00027232,2]
[381524576,1756250825439,-364.46079395,0.00027233,2]
[381524577,1756250825462,-1034.76064,0.00027233,2]
[381524578,1756250832079,-260.14834866,0.00026417,2]
[381524580,1756250900084,2635.44431736,0.000199,2]
[381524581,1756250900205,2635.44431725,0.00021627,2]
[381524582,1756250900333,2635.44431725,0.00023353,2]
[381524583,1756250900464,2093.67704814,0.0002508,2]
[381524584,1756250900494,541.76726911,0.0002508,2]
[381524585,1756250903901,204.41350146,0.000176,2]
[381524586,1756250907406,-1284.0210296,0.00026388,2]
[381524587,1756250907438,-50.55277928,0.00026417,2]
[381524588,1756250907477,-2635.44431725,0.00026806,6]
[381524589,1756250909758,178.18435062,0.00022,2]
[381524590,1756250915485,364.97170803,0.0002,2]
[381524591,1756250915896,37654.675285,0.0002,2]
[381524592,1756250916778,1704.06372877,0.00024,2]
[381524593,1756250917334,3285.91773517,0.0002,2]
[381524594,1756250917750,-4441.40720461,0.0002699,2]
[381524595,1756250917828,-10000.01,0.0002699,2]
[381524596,1756250918142,-10000.01,0.0002699,2]
[381524597,1756250921153,150.0,0.00025,2]
[381524598,1756250921696,8530.10724479,0.00024,2]
[381524599,1756250921899,50030.80759888,0.0002,2]
[381524600,1756250923372,278.99542258,0.000225,2]
[381524601,1756250923850,40110.90634259,0.0002465,2]
[381524602,1756250923893,456.7293854,0.00024,2]
[381524603,1756250924011,505.29454774,0.0002465,2]
[381524604,1756250924621,1452.59415123,0.0002,2]
[381524605,1756250925728,41926.54640348,0.00019063,2]
[381524606,1756250927331,-10000.01,0.00026,30]
[381524607,1756250927689,-10000.01,0.00026,30]
[381524608,1756250927847,-10000.01,0.00026,30]
[381524609,1756250927997,-10000.01,0.00026,30]
[381524610,1756250928221,-3583.546298,0.00026,30]
[381524611,1756250928269,-2832.917404,0.0002699,2]
[381524612,1756250928342,-10000.01,0.0002699,2]
[381524613,1756250928490,-4153.92368442,0.0002699,2]
[381524614,1756250928516,-1692.16263116,0.0002699,2]
[381524615,1756250937320,-10000.01,0.0002699,2]
[381524616,1756250937488,-10000.01,0.0002699,2]
[381524617,1756250937641,-4272.88314915,0.0002699,2]
[381524618,1756250937664,-1454.2437017,0.0002699,2]
[381524659,1756250996648,-168.95,0.00026322,2]
[381524660,1756250998869,-467.95949257,0.00026322,2]
[381524661,1756251005286,156.8,0.00013699,2]
[381524662,1756251005310,526.813198,0.00013699,2]
[381524663,1756251005585,683.613198,0.00020187,2]
[381524670,1756251022545,9152.297425,0.00031807,49]
[381524682,1756251032132,-1168.80979093,0.00026322,2]
[381524683,1756251032143,-683.613198,0.00026676,2]
[381524684,1756251032152,-250.0,0.00027234,2]
[381524685,1756251032162,-250.0,0.00027268,2]
[381524686,1756251032171,-251.0,0.00027332,7]
[381524687,1756251032181,-645.0,0.00027341,2]
[381524690,1756251032190,-300.0,0.00027342,2]
[381524693,1756251032200,-740.02864658,0.00027343,2]
[381524695,1756251032209,-4969.35749301,0.00027343,2]
[381524696,1756251032219,-2142.72060214,0.00027344,2]
[381524703,1756251038321,-382.10881203,0.00027344,2]
[381524704,1756251038331,-202.18674825,0.00027348,2]
[381524705,1756251038341,-102.24327601,0.0002736,2]
[381524713,1756251040293,-143.78624628,0.0002736,2]
[381524714,1756251040395,-3.97047771,0.0002736,2]
[381524715,1756251040405,-5489.33133534,0.0002736,2]
[381524716,1756251040416,-250.0,0.00027387,2]
[381524717,1756251040431,-797.71579374,0.00027388,2]
[381524718,1756251040440,-2268.11821651,0.00027399,2]
[381524719,1756251040450,-250.0,0.00027411,2]
[381524720,1756251040461,-193.484,0.00027418,16]
[381524721,1756251040471,-172.70750321,0.00027418,16]
[381524722,1756251040482,-324.12706052,0.00027424,2]
[381524723,1756251040493,-567.26692455,0.00027424,2]
[381524724,1756251040502,-567.26692455,0.00027424,2]
[381524725,1756251040511,-567.26692455,0.00027424,2]
[381524726,1756251040521,-567.26692455,0.00027424,2]
[381524727,1756251040530,-567.26692455,0.00027424,2]
[381524728,1756251040540,-567.26692455,0.00027424,2]
[381524729,1756251040549,-567.26692455,0.00027424,2]
[381524730,1756251040559,-567.26692455,0.00027424,2]
[381524731,1756251040568,-567.26692455,0.00027424,2]
[381524732,1756251040579,-437.88651283,0.00027424,2]
[381524733,1756251040596,-129.38041172,0.00027424,2]
[381524734,1756251040606,-270.22659616,0.00027424,2]
[381524822,1756251046629,-297.04032839,0.00027424,2]
[381524823,1756251046642,-500.0,0.00027425,7]
[381524824,1756251046655,-151.0,0.00027425,7]
[381524825,1756251046668,-151.0,0.00027425,7]
[381524826,1756251046680,-151.0,0.00027425,7]
[381524827,1756251046693,-151.0,0.00027425,7]
[381524828,1756251046706,-151.0,0.00027425,7]
[381524829,1756251046718,-151.0,0.00027425,7]
[381524830,1756251046732,-151.0,0.00027425,7]
[381524831,1756251046745,-151.0,0.00027425,7]
[381524832,1756251046757,-151.0,0.00027425,7]
[381524833,1756251046772,-151.0,0.00027425,7]
[381524834,1756251046785,-151.0,0.00027425,7]
[381524835,1756251046798,-151.0,0.00027425,7]
[381524836,1756251046810,-151.0,0.00027425,7]
[381524837,1756251046824,-151.0,0.00027425,7]
[381524838,1756251046838,-243.942292,0.00027425,7]
[381524839,1756251046851,-151.0,0.00027425,7]
[381524840,1756251046864,-151.0,0.00027425,7]
[381524841,1756251046877,-200.68619,0.00027425,7]
[381524842,1756251046890,-151.0,0.00027425,7]
[381524843,1756251046902,-151.0,0.00027425,7]
[381524844,1756251046914,-151.0,0.00027425,7]
[381524845,1756251046927,-151.0,0.00027425,7]
[381524846,1756251046939,-151.0,0.00027425,7]
[381524847,1756251046951,-151.0,0.00027425,7]
[381524848,1756251046964,-151.0,0.00027425,7]
[381524849,1756251046976,-153.320778,0.00027425,7]
[381524850,1756251046988,-151.0,0.00027425,7]
[381524851,1756251047000,-154.122369,0.00027425,7]
[381524852,1756251047013,-151.0,0.00027425,7]
[381524853,1756251047024,-151.0,0.00027425,7]
[381524854,1756251047036,-744.8397,0.00027425,7]
[381524855,1756251047049,-744.8397,0.00027425,7]
[381524856,1756251047061,-744.8397,0.00027425,7]
[381524857,1756251047073,-744.8397,0.00027425,7]
[381524858,1756251047085,-744.8397,0.00027425,7]
[381524859,1756251047098,-744.8397,0.00027425,7]
[381524860,1756251047110,-151.0,0.00027425,7]
[381524861,1756251047122,-151.0,0.00027425,7]
[381524862,1756251047134,-744.8397,0.00027425,7]
[381524863,1756251047146,-744.8397,0.00027425,7]
[381524864,1756251047158,-151.0,0.00027425,7]
[381524865,1756251047171,-151.0,0.00027425,7]
[381524866,1756251047184,-151.0,0.00027425,7]
[381524867,1756251047196,-151.0,0.00027425,7]
[381524868,1756251047209,-151.0,0.00027425,7]
[381524869,1756251047221,-151.0,0.00027425,7]
[381524870,1756251047234,-151.0,0.00027425,7]
[381524871,1756251047246,-151.0,0.00027425,7]
[381524872,1756251047259,-151.0,0.00027425,7]
[381524873,1756251047271,-151.0,0.00027425,7]
[381524874,1756251047283,-210.636484,0.00027425,7]
[381524875,1756251047295,-210.636484,0.00027425,7]
[381524876,1756251047307,-380.801869,0.00027425,7]
[381524877,1756251047319,-380.801869,0.00027425,7]
[381524878,1756251047331,-210.636484,0.00027425,7]
[381524879,1756251047343,-210.636484,0.00027425,7]
[381524880,1756251047355,-380.801869,0.00027425,7]
[381524881,1756251047367,-380.801869,0.00027425,7]
[381524882,1756251047380,-210.636484,0.00027425,7]
[381524883,1756251047392,-210.636484,0.00027425,7]
[381524884,1756251047404,-380.801869,0.00027425,7]
[381524885,1756251047418,-380.801869,0.00027425,7]
[381524886,1756251047432,-210.636484,0.00027425,7]
[381524887,1756251047443,-210.636484,0.00027425,7]
[381524888,1756251047455,-246.941935,0.00027425,7]
[381524889,1756251047468,-246.941935,0.00027425,7]
[381524890,1756251047480,-380.801869,0.00027425,7]
[381524891,1756251047493,-380.801869,0.00027425,7]
[381524892,1756251047506,-246.941935,0.00027425,7]
[381524893,1756251047517,-246.941935,0.00027425,7]
[381524894,1756251047529,-246.941935,0.00027425,7]
[381524895,1756251047540,-246.941935,0.00027425,7]
[381524896,1756251047552,-246.941935,0.00027425,7]
[381524897,1756251047564,-246.941935,0.00027425,7]
[381524898,1756251047576,-151.0,0.00027425,7]
[381524899,1756251047587,-151.0,0.00027425,7]
[381524900,1756251047599,-151.0,0.00027425,7]
[381524901,1756251047611,-151.000002,0.00027425,7]
[381524902,1756251047623,-151.0,0.00027425,7]
[381524903,1756251047635,-151.0,0.00027425,7]
[381524904,1756251047646,-154.236402,0.00027425,7]
[381524905,1756251047659,-179.912805,0.00027425,7]
[381524906,1756251047671,-179.912805,0.00027425,7]
[381524907,1756251047683,-179.912805,0.00027425,7]
[381524908,1756251047695,-179.912805,0.00027425,7]
[381524909,1756251047707,-179.912805,0.00027425,7]
[381524910,1756251047719,-179.912805,0.00027425,7]
[381524911,1756251047731,-179.912805,0.00027425,7]